lending/lending_fUSD_20250913
["ID","MTS","AMOUNT","RATE_DAILY","PERIOD"]
[385292980,1757752245763,-400.0,0.00031729,2]
[385292981,1757752245773,-400.0,0.00031729,2]
[385292982,1757752245782,-400.0,0.00031729,2]
[385292983,1757752245795,-400.0,0.00031729,2]
[385292984,1757752245804,-400.0,0.00031729,2]
[385292985,1757752245818,-400.0,0.00031729,2]
[385292986,1757752245829,-400.0,0.00031729,2]
[385292987,1757752245839,-400.0,0.00031729,2]
[385292988,1757752245849,-400.0,0.00031729,2]
[385292989,1757752245864,-400.0,0.00031729,2]
[385292990,1757752245873,-400.0,0.00031729,2]
[385292991,1757752245882,-400.0,0.00031729,2]
[385292992,1757752245893,-400.0,0.00031729,2]
[385292993,1757752245903,-400.0,0.00031729,2]
[385292994,1757752245912,-587.25,0.00031729,2]
[385292995,1757752245922,-400.0,0.00031729,2]
[385292996,1757752245931,-400.0,0.00031729,2]
[385292997,1757752245940,-400.0,0.00031729,2]
[385292998,1757752245950,-400.0,0.00031729,2]
[385292999,1757752245960,-400.0,0.00031729,2]
[385293000,1757752245969,-414.31,0.00031729,2]
[385293001,1757752245979,-400.0,0.00031729,2]
[385293002,1757752245988,-475.99,0.00031729,2]
[385293003,1757752245997,-400.66992106,0.00031729,2]
[385293004,1757752246008,-424.04,0.00031729,2]
[385293005,1757752246017,-406.39539048,0.00031729,2]
[385293006,1757752246027,-400.0,0.00031729,2]
[385293007,1757752246037,-400.0,0.00031729,2]
[385293008,1757752246046,-400.0,0.00031729,2]
[385293009,1757752246055,-400.0,0.00031729,2]
[385293010,1757752246065,-400.0,0.00031729,2]
[385293011,1757752246074,-402.65781627,0.00031729,2]
[385293012,1757752246083,-400.0,0.00031729,2]
[385293013,1757752246092,-500.0,0.00031729,14]
[385293014,1757752246102,-400.0,0.00031729,2]
[385293015,1757752246111,-400.0,0.00031729,2]
[385293016,1757752246120,-410.22,0.00031729,2]
[385293017,1757752246130,-400.0,0.00031729,2]
[385293018,1757752246140,-400.0,0.00031729,2]
[385293019,1757752246149,-485.67198489,0.00031729,2]
[385293020,1757752246158,-538.38,0.00031729,2]
[385293021,1757752246167,-400.0,0.00031729,2]
[385293022,1757752246177,-410.06,0.00031729,2]
[385293024,1757752246186,-400.0,0.00031729,2]
[385293025,1757752246195,-400.0,0.00031729,2]
[385293026,1757752246205,-212.14958127,0.00031729,2]
[385293027,1757752246214,-400.0,0.00031729,2]
[385293028,1757752246223,-400.0,0.00031729,2]
[385293029,1757752246233,-400.0,0.00031729,2]
[385293031,1757752246243,-201.81442915,0.00031729,2]
[385293033,1757752246252,-400.0,0.00031729,2]
[385293035,1757752246261,-400.0,0.00031729,2]
[385293036,1757752246270,-637.91,0.00031729,2]
[385293037,1757752246280,-400.0,0.00031729,2]
[385293038,1757752246289,-466.03,0.00031729,2]
[385293039,1757752246298,-400.0,0.00031729,2]
[385293040,1757752246308,-400.0,0.00031729,2]
[385293041,1757752246318,-400.0,0.00031729,2]
[385293042,1757752246327,-400.0,0.00031729,2]
[385293043,1757752246338,-400.0,0.00031729,2]
[385293044,1757752246347,-1908.41,0.00031729,2]
[385293045,1757752246356,-400.0,0.00031729,2]
[385293046,1757752246366,-400.0,0.00031729,2]
[385293047,1757752246375,-400.0,0.00031729,2]
[385293048,1757752246384,-400.0,0.00031729,2]
[385293049,1757752246394,-400.0,0.00031729,2]
[385293050,1757752246403,-597.94,0.00031729,2]
[385293051,1757752246413,-400.0,0.00031729,2]
[385293052,1757752246423,-801.08,0.00031729,2]
[385293053,1757752246432,-400.0,0.00031729,2]
[385293054,1757752246441,-400.0,0.00031729,2]
[385293055,1757752246451,-400.0,0.00031729,2]
[385293056,1757752246460,-400.0,0.00031729,2]
[385293057,1757752246469,-3929.61,0.00031729,2]
[385293058,1757752246478,-400.0,0.00031729,2]
[385293059,1757752246488,-400.0,0.00031729,2]
[385293060,1757752246497,-400.0,0.00031729,2]
[385293061,1757752246507,-400.0,0.00031729,2]
[385293062,1757752246516,-400.0,0.00031729,2]
[385293063,1757752246526,-502.71,0.00031729,2]
[385293064,1757752246536,-400.0,0.00031729,2]
[385293065,1757752246545,-400.0,0.00031729,2]
[385293066,1757752246554,-405.61,0.00031729,2]
[385293067,1757752246567,-400.0,0.00031729,2]
[385293068,1757752246577,-758.98,0.00031729,2]
[385293069,1757752246587,-400.0,0.00031729,2]
[385293070,1757752246597,-400.0,0.00031729,2]
[385293071,1757752246607,-402.24804269,0.00031729,2]
[385293072,1757752246618,-694.81,0.00031729,2]
[385293073,1757752246628,-400.0,0.00031729,2]
[385293074,1757752246638,-400.0,0.00031729,2]
[385293075,1757752246648,-400.0,0.00031729,2]
[385293076,1757752246659,-400.0,0.00031729,2]
[385293077,1757752246669,-400.0,0.00031729,2]
[385293078,1757752246679,-400.0,0.00031729,2]
[385293079,1757752246688,-639.85,0.00031729,2]
[385293080,1757752246697,-625.49,0.00031729,2]
[385293081,1757752246706,-517.61,0.00031729,2]
[385293082,1757752246716,-400.0,0.00031729,2]
[385293083,1757752246725,-400.0,0.00031729,2]
[385293084,1757752246734,-1090.97,0.00031729,2]
[385293085,1757752246744,-676.26,0.00031729,2]
[385293086,1757752246754,-402.29831543,0.00031729,2]
[385293087,1757752246765,-400.0,0.00031729,2]
[385293088,1757752246775,-400.0,0.00031729,2]
[385293089,1757752246789,-400.0,0.00031729,2]
[385293090,1757752246799,-400.0,0.00031729,2]
[385293091,1757752246809,-400.0,0.00031729,2]
[385293092,1757752246818,-402.67233465,0.00031729,2]
[385293093,1757752246828,-400.0,0.00031729,2]
[385293094,1757752246837,-400.0,0.00031729,2]
[385293095,1757752246847,-645.49,0.00031729,2]
[385293096,1757752246857,-400.0,0.00031729,2]
[385293097,1757752246867,-577.8,0.00031729,2]
[385293098,1757752246878,-400.0,0.00031729,2]
[385293099,1757752246888,-400.0,0.00031729,2]
[385293100,1757752246897,-400.0,0.00031729,2]
[385293101,1757752246908,-400.0,0.00031729,2]
[385293102,1757752246918,-927.91,0.00031729,2]
[385293103,1757752246927,-218.07004754,0.00031729,2]
[385293104,1757752246937,-576.45,0.00031729,2]
[385293105,1757752246946,-769.28,0.00031729,2]
[385293106,1757752246955,-525.63,0.00031729,2]
[385293107,1757752246964,-400.0,0.00031729,2]
[385293108,1757752246973,-489.09,0.00031729,2]
[385293109,1757752246983,-400.0,0.00031729,2]
[385293110,1757752246992,-400.0,0.00031729,2]
[385293111,1757752247001,-400.0,0.00031729,2]
[385293112,1757752247011,-400.0,0.00031729,2]
[385293113,1757752247022,-400.0,0.00031729,2]
[385293114,1757752247032,-400.0,0.00031729,2]
[385293115,1757752247042,-400.0,0.00031729,2]
[385293116,1757752247050,-400.0,0.00031729,2]
[385293117,1757752247059,-400.0,0.00031729,2]
[385293118,1757752247068,-400.0,0.00031729,2]
[385293119,1757752247078,-400.0,0.00031729,2]
[385293120,1757752247088,-400.0,0.00031729,2]
[385293121,1757752247098,-400.0,0.00031729,2]
[385293122,1757752247107,-400.0,0.00031729,2]
[385293123,1757752247117,-639.09,0.00031729,2]
[385293124,1757752247127,-527.26,0.00031729,2]
[385293125,1757752247137,-400.0,0.00031729,2]
[385293126,1757752247147,-401.40474685,0.00031729,2]
[385293127,1757752247157,-400.0,0.00031729,2]
[385293128,1757752247166,-400.0,0.00031729,2]
[385293129,1757752247176,-3153.17,0.00031729,2]
[385293130,1757752247185,-400.0,0.00031729,2]
[385293131,1757752247196,-400.0,0.00031729,2]
[385293132,1757752247205,-400.0,0.00031729,2]
[385293133,1757752247215,-416.91664502,0.00031729,2]
[385293134,1757752247224,-2227.97,0.00031729,2]
[385293135,1757752247234,-400.0,0.00031729,2]
[385293136,1757752247243,-400.0,0.00031729,2]
[385293137,1757752247253,-260.90048233,0.00031729,2]
[385293138,1757752247262,-400.0,0.00031729,2]
[385293139,1757752247271,-400.0,0.00031729,2]
[385293140,1757752247360,-352.43583556,0.00031729,2]
[385293141,1757752247370,-400.0,0.00031729,2]
[385293142,1757752247379,-400.0,0.00031729,2]
[385293143,1757752247388,-442.94,0.00031729,2]
[385293144,1757752247397,-577.96,0.00031729,2]
[385293145,1757752247406,-400.0,0.00031729,2]
[385293146,1757752247415,-607.49,0.00031729,2]
[385293147,1757752247425,-554.7,0.00031729,2]
[385293148,1757752247434,-400.0,0.00031729,2]
[385293149,1757752247445,-550.22,0.00031729,2]
[385293150,1757752247454,-400.0,0.00031729,2]
[385293151,1757752247463,-520.98,0.00031729,2]
[385293152,1757752247473,-1000.0,0.00031729,2]
[385293153,1757752247483,-400.0,0.00031729,2]
[385293154,1757752247493,-400.0,0.00031729,2]
[385293155,1757752247502,-400.0,0.00031729,2]
[385293156,1757752247511,-680.93,0.00031729,2]
[385293157,1757752247520,-400.0,0.00031729,2]
[385293158,1757752247529,-400.0,0.00031729,2]
[385293159,1757752247537,-400.0,0.00031729,2]
[385293160,1757752247547,-400.0,0.00031729,2]
[385293161,1757752247557,-400.0,0.00031729,2]
[385293162,1757752247566,-400.0,0.00031729,2]
[385293163,1757752247575,-901.52,0.00031729,2]
[385293164,1757752247584,-400.0,0.00031729,2]
[385293165,1757752247593,-760.16,0.00031729,2]
[385293166,1757752247603,-400.0,0.00031729,2]
[385293167,1757752247612,-400.0,0.00031729,2]
[385293168,1757752247621,-840.5777347,0.0003173,2]
[385293169,1757752247630,-164.22201288,0.00031733,2]
[385293170,1757752247639,-400.0,0.00031739,2]
[385293171,1757752247648,-404.59106714,0.00031739,2]
[385293172,1757752247657,-400.0,0.00031739,2]
[385293173,1757752247667,-400.0,0.00031739,2]
[385293174,1757752247676,-403.5155727,0.00031739,2]
[385293175,1757752247685,-759.16,0.00031739,2]
[385293176,1757752247694,-760.9,0.00031739,2]
[385293177,1757752247703,-400.0,0.00031739,2]
[385293178,1757752247714,-400.0,0.00031739,2]
[385293179,1757752247724,-604.78,0.00031739,2]
[385293180,1757752247735,-403.78673029,0.00031739,2]
[385293181,1757752247744,-745.79,0.00031739,2]
[385293182,1757752247754,-966.37,0.00031739,2]
[385293183,1757752247764,-817.03,0.00031739,2]
[385293184,1757752247775,-400.0,0.00031739,2]
[385293185,1757752247787,-796.95,0.00031739,2]
[385293186,1757752247799,-400.0,0.00031739,2]
[385293187,1757752247808,-651.9,0.00031739,2]
[385293188,1757752247817,-400.0,0.00031739,2]
[385293189,1757752247826,-602.14,0.00031739,2]
[385293190,1757752247838,-553.35,0.00031739,2]
[385293191,1757752247847,-400.0,0.00031739,2]
[385293192,1757752247855,-400.0,0.00031739,2]
[385293193,1757752247864,-400.0,0.00031739,2]
[385293194,1757752247873,-667.71,0.00031739,2]
[385293195,1757752247883,-500.0,0.00031739,2]
[385293196,1757752247892,-500.0,0.00031739,2]
[385293197,1757752247901,-657.14,0.00031739,2]
[385293198,1757752247910,-671.97,0.00031739,2]
[385293199,1757752247919,-707.05,0.00031739,2]
[385293200,1757752247928,-580.55,0.00031739,2]
[385293201,1757752247937,-566.28,0.00031739,2]
[385293202,1757752247946,-400.0,0.00031739,2]
[385293203,1757752247955,-500.0,0.00031739,2]
[385293204,1757752247965,-500.0,0.00031739,2]
[385293205,1757752247974,-400.0,0.00031739,2]
[385293206,1757752247983,-629.6,0.00031739,2]
[385293207,1757752247992,-585.16,0.00031739,2]
[385293208,1757752248001,-400.0,0.00031739,2]
[385293209,1757752248010,-664.77,0.00031739,2]
[385293210,1757752248020,-400.0,0.00031739,2]
[385293211,1757752248029,-574.5,0.00031739,2]
[385293212,1757752248039,-639.56,0.00031739,2]
[385293213,1757752248049,-551.55,0.00031739,2]
[385293214,1757752248058,-515.02,0.00031739,2]
[385293215,1757752248068,-400.0,0.00031739,2]
[385293216,1757752248077,-563.01,0.00031739,2]
[385293217,1757752248087,-484.69,0.00031739,2]
[385293218,1757752248096,-641.51,0.00031739,2]
[385293219,1757752248106,-1424.36,0.00031739,2]
[385293220,1757752248115,-1062.51,0.00031739,2]
[385293221,1757752248124,-673.36,0.00031739,2]
[385293222,1757752248133,-597.82,0.00031739,2]
[385293223,1757752248142,-700.21,0.00031739,2]
[385293224,1757752248152,-400.0,0.00031739,2]
[385293225,1757752248161,-450.12,0.00031739,2]
[385293226,1757752248170,-1874.57,0.00031739,2]
[385293227,1757752248179,-400.0,0.00031739,2]
[385293228,1757752248188,-400.0,0.00031739,2]
[385293229,1757752248197,-535.13,0.00031739,2]
[385293230,1757752248206,-500.0,0.00031739,2]
[385293231,1757752248216,-500.0,0.00031739,2]
[385293232,1757752248226,-713.73,0.00031739,2]
[385293233,1757752248235,-400.0,0.00031739,2]
[385293234,1757752248245,-2728.28,0.00031739,2]
[385293235,1757752248254,-408.5,0.00031739,2]
[385293236,1757752248264,-638.92,0.00031739,2]
[385293237,1757752248273,-2573.29,0.00031739,2]
[385293238,1757752248282,-557.61,0.00031739,2]
[385293239,1757752248291,-400.0,0.00031739,2]
[385293240,1757752248301,-483.71,0.00031739,2]
[385293241,1757752248310,-714.8,0.00031739,2]
[385293242,1757752248320,-578.16,0.00031739,2]
[385293243,1757752248329,-1415.77,0.00031739,2]
[385293244,1757752248338,-400.0,0.00031739,2]
[385293245,1757752248347,-421.82,0.00031739,2]
[385293246,1757752248356,-1000.0,0.00031739,2]
[385293247,1757752248366,-400.0,0.00031739,2]
[385293248,1757752248375,-400.0,0.00031739,2]
[385293249,1757752248384,-400.0,0.00031739,2]
[385293250,1757752248394,-869.49,0.00031739,2]
[385293251,1757752248404,-721.49,0.00031739,2]
[385293252,1757752248413,-1039.35,0.00031739,2]
[385293253,1757752248424,-688.34,0.00031739,2]
[385293254,1757752248433,-805.15,0.00031739,2]
[385293255,1757752248443,-615.73,0.00031739,2]
[385293256,1757752248453,-403.82202363,0.00031739,2]
[385293257,1757752248463,-644.52,0.00031739,2]
[385293258,1757752248472,-400.0,0.00031739,2]
[385293259,1757752248481,-899.98,0.00031739,2]
[385293260,1757752248490,-838.37,0.00031739,2]
[385293261,1757752248501,-889.51,0.00031739,2]
[385293262,1757752248510,-664.26,0.00031739,2]
[385293263,1757752248519,-587.4,0.00031739,2]
[385293264,1757752248528,-699.53,0.00031739,2]
[385293265,1757752248538,-400.0,0.00031739,2]
[385293266,1757752248548,-2538.72,0.00031739,2]
[385293267,1757752248557,-747.56,0.00031739,2]
[385293268,1757752248566,-1112.5,0.00031739,2]
[385293269,1757752248578,-400.0,0.00031739,2]
[385293270,1757752248587,-607.21,0.00031739,2]
[385293271,1757752248596,-1571.18,0.00031739,2]
[385293272,1757752248606,-623.72,0.00031739,2]
[385293273,1757752248615,-946.81,0.00031739,2]
[385293274,1757752248625,-866.26,0.00031739,2]
[385293275,1757752248634,-623.02,0.00031739,2]
[385293276,1757752248644,-1108.51,0.00031739,2]
[385293277,1757752248654,-500.0,0.00031739,2]
[385293278,1757752248663,-500.0,0.00031739,2]
[385293279,1757752248672,-400.0,0.00031739,2]
[385293280,1757752248682,-500.54,0.00031739,2]
[385293281,1757752248691,-566.38,0.00031739,2]
[385293282,1757752248701,-599.69,0.00031739,2]
[385293283,1757752248710,-816.47,0.00031739,2]
[385293284,1757752248720,-597.27,0.00031739,2]
[385293285,1757752248729,-686.57,0.00031739,2]
[385293286,1757752248739,-1177.68,0.00031739,2]
[385293287,1757752248749,-2278.0,0.00031739,2]
[385293288,1757752248759,-727.3,0.00031739,2]
[385293289,1757752248768,-693.81,0.00031739,2]
[385293290,1757752248778,-955.14,0.00031739,2]
[385293291,1757752248790,-998.58,0.00031739,2]
[385293292,1757752248799,-759.7,0.00031739,2]
[385293293,1757752248809,-400.0,0.00031739,2]
[385293294,1757752248818,-400.0,0.00031739,2]
[385293295,1757752248828,-1376.62,0.00031739,2]
[385293296,1757752248838,-655.74,0.00031739,2]
[385293297,1757752248847,-781.32,0.00031739,2]
[385293298,1757752248858,-400.0,0.00031739,2]
[385293299,1757752248867,-462.41,0.00031739,2]
[385293300,1757752248878,-152.0,0.0003174,5]
[385293301,1757752248888,-400.0,0.0003174,2]
[385293302,1757752248898,-506.72037671,0.0003174,2]
[385293303,1757752248907,-402.59909773,0.0003174,2]
[385293304,1757752248917,-236.34286886,0.0003174,2]
[385293305,1757752248926,-404.91063267,0.0003174,2]
[385293306,1757752248936,-400.0,0.0003174,2]
[385293307,1757752248946,-400.0,0.0003174,2]
[385293308,1757752248955,-204.53624979,0.0003174,2]
[385293309,1757752248965,-400.0,0.0003174,2]
[385293310,1757752248975,-400.0,0.0003174,2]
[385293311,1757752248984,-400.0,0.0003174,2]
[385293312,1757752248994,-400.0,0.0003174,2]
[385293313,1757752249004,-400.0,0.0003174,2]
[385293314,1757752249014,-400.0,0.0003174,2]
[385293315,1757752249023,-400.0,0.0003174,2]
[385293316,1757752249033,-400.0,0.0003174,2]
[385293317,1757752249043,-400.0,0.0003174,2]
[385293318,1757752249052,-400.0,0.0003174,2]
[385293319,1757752249062,-686.5,0.0003174,2]
[385293320,1757752249072,-608.8,0.0003174,2]
[385293321,1757752249083,-400.0,0.0003174,2]
[385293322,1757752249092,-637.68,0.0003174,2]
[385293323,1757752249101,-400.0,0.0003174,2]
[385293324,1757752249111,-400.0,0.0003174,2]
[385293325,1757752249122,-417.22,0.0003174,2]
[385293326,1757752249132,-400.0,0.0003174,2]
[385293327,1757752249142,-400.0,0.0003174,2]
[385293328,1757752249152,-400.0,0.0003174,2]
[385293329,1757752249162,-400.0,0.0003174,2]
[385293330,1757752249171,-464.99,0.0003174,2]
[385293331,1757752249180,-400.0,0.0003174,2]
[385293332,1757752249190,-400.0,0.0003174,2]
[385293333,1757752249199,-324.06436414,0.0003174,2]
[385293334,1757752667451,157.12,0.00015059,2]
[385293335,1757752667926,157.12,0.00016565,2]
[385293336,1757752668011,157.12,0.00018071,2]
[385293337,1757752668159,157.12,0.00019577,2]
[385293338,1757753067300,-157.12,0.00021083,2]
[385293339,1757753067327,-157.12,0.00022589,2]
[385293340,1757753067353,-500.0,0.00023,5]
[385293341,1757753067374,-261.0,0.00023,5]
[385293342,1757753067395,-191.92617758,0.00023091,2]
[385293343,1757753067417,-300.0,0.00023992,2]
[385293344,1757753067437,-300.0,0.00023993,2]
[385293345,1757753072625,500.0,0.00023992,2]
[385293346,1757753072656,500.0,0.00023992,2]
[385293347,1757753072688,500.0,0.00023992,2]
[385293348,1757753072719,500.0,0.00023992,2]
[385293349,1757753072758,500.0,0.00023992,2]
[385293350,1757753072786,500.0,0.00023992,2]
[385293351,1757753072813,500.0,0.00023992,2]
[385293352,1757753072841,500.0,0.00023992,2]
[385293353,1757753072871,500.0,0.00023992,2]
[385293354,1757753072897,568.22353155,0.00023992,2]
[385293355,1757753072928,500.0,0.00023992,2]
[385293356,1757753072968,500.0,0.00023992,2]
[385293357,1757753072996,500.0,0.00023992,2]
[385293358,1757753073032,500.0,0.00023992,2]
[385293359,1757753073066,500.0,0.00023992,2]
[385293360,1757753073094,500.0,0.00023992,2]
[385293361,1757753073123,500.0,0.00023992,2]
[385293362,1757753073163,500.0,0.00023992,2]
[385293363,1757753073207,500.0,0.00023992,2]
[385293364,1757753073244,500.0,0.00023992,2]
[385293365,1757753254088,-157.12,0.00024095,2]
[385293366,1757753254111,-250.0,0.00024497,2]
[385293367,1757753254134,-1347.22985704,0.000249,2]
[385293368,1757753254155,-157.12,0.00025601,2]
[385293369,1757753254175,-250.0,0.00026504,2]
[385293370,1757753254196,-1056.61967392,0.00026504,3]
[385293371,1757753254220,-157.12,0.00027107,2]
[385293372,1757753254243,-157.12,0.00028613,2]
[385293373,1757753254264,-873.83,0.00029041,2]
[385293374,1757753254285,-163.1,0.00029172,30]
[385293375,1757753254306,-176.35371184,0.00029406,2]
[385293376,1757753355080,-1293.34066272,0.000249,2]
[385293377,1757753355106,-151.79,0.00027397,2]
[385293387,1757753431936,-24.95628816,0.00029406,2]
[385293388,1757753431946,-150.0,0.0002944,2]
[385293389,1757753431956,-220.50267737,0.00029574,2]
[385293390,1757753431966,-1000.0,0.00029589,7]
[385293391,1757753431975,-162.3,0.00029641,2]
[385293392,1757753431985,-258.61425123,0.00029708,2]
[385293393,1757753431995,-150.0,0.00029737,7]
[385293394,1757753432004,-296.7258251,0.00029843,2]
[385293395,1757753432013,-404.11,0.00029929,2]
[385293396,1757753432023,-158.92232517,0.00029977,2]
[385293413,1757753432977,-175.9150738,0.00029977,2]
[385293414,1757753432987,-846.23,0.00029991,2]
[385293415,1757753432995,-500.0,0.00030109,2]
[385293416,1757753433004,-618.69150351,0.00030109,2]
[385293417,1757753433014,-372.94897283,0.00030111,2]
[385293418,1757753433023,-157.12,0.00030118,2]
[385293419,1757753433032,-499.12,0.0003012,2]
[385293420,1757753433042,-168.55,0.00030128,2]
[385293421,1757753433051,-277.35679052,0.00030168,2]
[385293422,1757753433061,-411.0605467,0.00030245,2]
[385293423,1757753433070,-560.40035412,0.00030299,2]
[385293424,1757753433080,-223.5215601,0.00030299,2]
[385293425,1757753433089,-200.90192325,0.00030299,2]
[385293426,1757753433099,-3090.56443517,0.000303,5]
[385293430,1757753437880,-1742.61425109,0.000303,5]
[385293431,1757753438039,-17304.01569247,0.000303,5]
[385293438,1757753439876,-324.88681926,0.000303,5]
[385293439,1757753439888,-13211.58530056,0.000303,5]
[385293440,1757753439899,-854.57759934,0.000303,5]
[385293441,1757753439982,-5383.56371194,0.000303,5]
[385293442,1757753439994,-449.17212056,0.00030379,2]
[385293443,1757753440004,-1000.0,0.0003041,7]
[385293444,1757753440014,-487.28369443,0.00030514,2]
[385293445,1757753440023,-525.3952683,0.00030648,2]
[385293446,1757753440034,-563.50684216,0.00030782,2]
[385293447,1757753440044,-601.61841603,0.00030916,2]
[385293448,1757753440054,-400.0,0.0003104,2]
[385293449,1757753440064,-400.0,0.0003104,2]
[385293450,1757753440073,-402.63373036,0.0003104,2]
[385293451,1757753440083,-402.28344324,0.0003104,2]
[385293452,1757753440092,-400.0,0.0003104,2]
[385293453,1757753440379,-400.0,0.0003104,2]
[385293454,1757753440389,-405.52735748,0.0003104,2]
[385293455,1757753440398,-58.81091573,0.0003104,2]
[385293457,1757753440564,-341.18908427,0.0003104,2]
[385293458,1757753440573,-402.05661963,0.0003104,2]
[385293459,1757753440583,-400.0,0.0003104,2]
[385293460,1757753440592,-400.0,0.0003104,2]
[385293461,1757753440601,-502.71188857,0.0003104,2]
[385293462,1757753440610,-400.0,0.0003104,2]
[385293463,1757753440620,-400.0,0.0003104,2]
[385293464,1757753440630,-405.78423892,0.0003104,2]
[385293465,1757753440640,-400.0,0.0003104,2]
[385293466,1757753440650,-400.0,0.0003104,2]
[385293467,1757753440661,-400.0,0.0003104,2]
[385293468,1757753440670,-611.33,0.0003104,2]
[385293469,1757753440680,-1828.89,0.0003104,2]
[385293470,1757753440689,-3765.88,0.0003104,2]
[385293471,1757753440699,-481.76,0.0003104,2]
[385293472,1757753440708,-400.0,0.0003104,2]
[385293473,1757753440719,-727.35,0.0003104,2]
[385293474,1757753440729,-613.19,0.0003104,2]
[385293475,1757753440740,-599.42,0.0003104,2]
[385293476,1757753440750,-648.09,0.0003104,2]
[385293477,1757753440759,-1045.52,0.0003104,2]
[385293478,1757753440770,-618.59,0.0003104,2]
[385293479,1757753440780,-553.73,0.0003104,2]
[385293480,1757753440790,-889.25,0.0003104,2]
[385293481,1757753440800,-503.73,0.0003104,2]
[385293482,1757753440809,-491.48,0.0003104,2]
[385293483,1757753440818,-612.46,0.0003104,2]
[385293484,1757753440827,-400.0,0.0003104,2]
[385293485,1757753440838,-505.29,0.0003104,2]
[385293486,1757753440847,-3021.79,0.0003104,2]
[385293487,1757753440857,-2135.14,0.0003104,2]
[385293488,1757753440866,-579.01,0.0003104,2]
[385293489,1757753440875,-499.28,0.0003104,2]
[385293490,1757753440884,-772.93,0.0003104,2]
[385293491,1757753440893,-652.56,0.0003104,2]
[385293492,1757753440902,-531.58,0.0003104,2]
[385293493,1757753440911,-863.95,0.0003104,2]
[385293494,1757753440921,-1365.01,0.0003104,2]
[385293495,1757753440930,-728.48,0.0003104,2]
[385293496,1757753440939,-400.0,0.0003104,2]
[385293497,1757753440949,-550.84,0.0003104,2]
[385293498,1757753440958,-400.0,0.0003104,2]
[385293499,1757753440967,-500.0,0.0003104,2]
[385293500,1757753440975,-1796.47,0.0003104,2]
[385293501,1757753440985,-512.83,0.0003104,2]
[385293502,1757753440994,-400.0,0.0003104,2]
[385293503,1757753441003,-1081.94081173,0.0003104,2]
[385293506,1757753443683,-1532.65918827,0.0003104,2]
[385293507,1757753443692,-2484.85,0.0003104,2]
[385293508,1757753443702,-612.3,0.0003104,2]
[385293509,1757753443711,-639.72998989,0.00031051,2]
[385293510,1757753443720,-2419.32636147,0.00031056,30]
[385293511,1757753443730,-677.84156376,0.00031185,2]
[385293512,1757753443740,-1000.0,0.00031232,7]
[385293513,1757753443749,-706.03752987,0.00031245,2]
[385293514,1757753443759,-437.0,0.000313,2]
[385293515,1757753443768,-405.32620558,0.00031314,2]
[385293516,1757753443777,-406.97540134,0.00031314,2]
[385293517,1757753443787,-422.01586978,0.00031314,2]
[385293518,1757753443796,-400.0,0.00031314,2]
[385293519,1757753443805,-400.0,0.00031314,2]
[385293520,1757753443814,-400.0,0.00031314,2]